[Event "Early-Titled-Tuesday-Blitz-October-17-2023"]
[Site "Chess.com"]
[Date "2023.10.17"]
[Round "9"]
[White "Kostya0705"]
[Black "GMaka"]
[Result "0-1"]
[WhiteElo "2630"]
[BlackElo "2532"]
[TimeControl "180+1"]
[EndTime "9:49:18 PDT"]
[Termination "GMaka won by resignation"]

1. e4 {[%clk 0:02:37]} 1... c6 {[%clk 0:02:58.4]} 2. d4 {[%clk 0:02:35.5]} 2...
d5 {[%clk 0:02:59.3]} 3. e5 {[%clk 0:02:35.9]} 3... c5 {[%clk 0:02:56.7]} 4.
dxc5 {[%clk 0:02:36.8]} 4... Nc6 {[%clk 0:02:56.3]} 5. f4 {[%clk 0:02:36.5]}
5... Nh6 {[%clk 0:02:56]} 6. Nf3 {[%clk 0:02:36]} 6... Bg4 {[%clk 0:02:56]} 7.
Be3 {[%clk 0:02:34.9]} 7... Nf5 {[%clk 0:02:55.2]} 8. Bf2 {[%clk 0:02:33.9]}
8... e6 {[%clk 0:02:52.5]} 9. h3 {[%clk 0:02:31.5]} 9... Bxf3 {[%clk 0:02:51.2]}
10. Qxf3 {[%clk 0:02:32.4]} 10... Qa5+ {[%clk 0:02:09]} 11. c3 {[%clk
0:02:23.2]} 11... Bxc5 {[%clk 0:02:04.5]} 12. Nd2 {[%clk 0:02:17.7]} 12... h5
{[%clk 0:01:43.3]} 13. Bd3 {[%clk 0:02:08.2]} 13... Bxf2+ {[%clk 0:01:34.4]} 14.
Qxf2 {[%clk 0:02:06.3]} 14... g6 {[%clk 0:01:35]} 15. g3 {[%clk 0:02:03.7]}
15... Qc7 {[%clk 0:01:21.2]} 16. O-O-O {[%clk 0:02:01.5]} 16... O-O-O {[%clk
0:01:15.4]} 17. g4 {[%clk 0:01:56.1]} 17... Nfe7 {[%clk 0:01:14]} 18. Kb1 {[%clk
0:01:54.3]} 18... Kb8 {[%clk 0:01:13.4]} 19. Nb3 {[%clk 0:01:47.3]} 19... g5
{[%clk 0:01:03.9]} 20. Rhe1 {[%clk 0:01:41.8]} 20... hxg4 {[%clk 0:01:03.1]} 21.
hxg4 {[%clk 0:01:41.6]} 21... Rdg8 {[%clk 0:00:50.4]} 22. Nd4 {[%clk 0:01:37.3]}
22... gxf4 {[%clk 0:00:33.1]} 23. Qxf4 {[%clk 0:01:34.8]} 23... Ng6 {[%clk
0:00:33.5]} 24. Bxg6 {[%clk 0:01:33.9]} 24... Rxg6 {[%clk 0:00:34.4]} 25. Nxc6+
{[%clk 0:01:27.6]} 25... bxc6 {[%clk 0:00:35.3]} 26. Rd4 {[%clk 0:01:26.1]}
26... Rhg8 {[%clk 0:00:35]} 27. Qf3 {[%clk 0:01:21.5]} 27... Rg5 {[%clk
0:00:33.4]} 28. c4 {[%clk 0:01:14.8]} 28... Rxe5 {[%clk 0:00:30.1]} 29. Rc1
{[%clk 0:01:15.3]} 29... Rgg5 {[%clk 0:00:23.6]} 30. Rf4 {[%clk 0:01:12]} 30...
f5 {[%clk 0:00:20.6]} 31. cxd5 {[%clk 0:01:09.8]} 31... Rxd5 {[%clk 0:00:20.2]}
32. Qb3+ {[%clk 0:00:58.8]} 32... Qb7 {[%clk 0:00:18.4]} 33. Rb4 {[%clk
0:00:56.2]} 33... Rb5 {[%clk 0:00:18.1]} 34. Rxb5 {[%clk 0:00:51.9]} 34... Qxb5
{[%clk 0:00:19]} 35. Qxe6 {[%clk 0:00:50.1]} 35... Rxg4 {[%clk 0:00:15.7]} 36.
Rd1 {[%clk 0:00:44.1]} 36... Kb7 {[%clk 0:00:08.2]} 37. b3 {[%clk 0:00:24]}
37... Re4 {[%clk 0:00:08.1]} 38. Qf7+ {[%clk 0:00:20.7]} 38... Ka6 {[%clk
0:00:07.9]} 39. Rd7 {[%clk 0:00:18.7]} 39... Re1+ {[%clk 0:00:05.6]} 40. Kb2
{[%clk 0:00:18.6]} 40... Qe5+ {[%clk 0:00:05.3]} 41. Ka3 {[%clk 0:00:17.7]}
41... Qc5+ {[%clk 0:00:05.9]} 42. b4 {[%clk 0:00:15.2]} 42... Re3+ {[%clk
0:00:05.2]} 43. Qb3 {[%clk 0:00:08.3]} 43... Rxb3+ {[%clk 0:00:05.5]} 44. axb3
{[%clk 0:00:09.2]} 44... Qb5 {[%clk 0:00:05.2]} 45. Rf7 {[%clk 0:00:09.8]} 45...
Qe5 {[%clk 0:00:05.3]} 46. Rf8 {[%clk 0:00:09.3]} 46... Kb6 {[%clk 0:00:06]} 47.
Ka4 {[%clk 0:00:09.6]} 47... a6 {[%clk 0:00:06.1]} 48. Rf7 {[%clk 0:00:09.1]}
48... Qb5+ {[%clk 0:00:05.8]} 49. Ka3 {[%clk 0:00:09.3]} 49... Qd5 {[%clk
0:00:06.4]} 50. Rf8 {[%clk 0:00:09.1]} 50... a5 {[%clk 0:00:07]} 51. Rb8+ {[%clk
0:00:09.1]} 51... Kc7 {[%clk 0:00:07]} 52. Ra8 {[%clk 0:00:09.3]} 52... axb4+
{[%clk 0:00:07.9]} 53. Kxb4 {[%clk 0:00:09.7]} 53... Qd6+ {[%clk 0:00:08.5]} 54.
Ka4 {[%clk 0:00:09.9]} 54... Qd4+ {[%clk 0:00:08.6]} 55. b4 {[%clk 0:00:10]}
55... f4 {[%clk 0:00:09.2]} 56. Rf8 {[%clk 0:00:10.1]} 56... Qe4 {[%clk
0:00:09]} 57. Rf7+ {[%clk 0:00:10]} 57... Kd6 {[%clk 0:00:09.3]} 58. Rf6+ {[%clk
0:00:10.9]} 58... Ke7 {[%clk 0:00:09.4]} 59. Rh6 {[%clk 0:00:11.1]} 59... c5
{[%clk 0:00:09.9]} 60. Kb5 {[%clk 0:00:10.6]} 60... Qxb4+ {[%clk 0:00:10.4]} 61.
Kc6 {[%clk 0:00:11.5]} 61... f3 {[%clk 0:00:11.1]} 62. Rh7+ {[%clk 0:00:11.6]}
62... Kf6 {[%clk 0:00:11.7]} 63. Rh8 {[%clk 0:00:11.8]} 63... Kg5 {[%clk
0:00:12.3]} 64. Rg8+ {[%clk 0:00:11.7]} 64... Kf4 {[%clk 0:00:13.2]} 65. Rf8+
{[%clk 0:00:12.4]} 65... Ke3 {[%clk 0:00:13.9]} 66. Re8+ {[%clk 0:00:13.3]}
66... Kf2 {[%clk 0:00:14.8]} 67. Rf8 {[%clk 0:00:14.2]} 67... Qe4+ {[%clk
0:00:15]} 68. Kb6 {[%clk 0:00:14.5]} 68... Qe3 {[%clk 0:00:15.9]} 69. Kb5 {[%clk
0:00:15]} 69... Ke2 {[%clk 0:00:15.8]} 70. Kc4 {[%clk 0:00:15.4]} 70... f2
{[%clk 0:00:16.7]} 71. Ra8 {[%clk 0:00:15.3]} 71... f1=Q {[%clk 0:00:17]} 0-1

[Event "Early-Titled-Tuesday-Blitz-October-17-2023"]
[Site "Chess.com"]
[Date "2023.10.17"]
[Round "9"]
[White "Nekoo04"]
[Black "DonCiao"]
[Result "1/2-1/2"]
[WhiteElo "2245"]
[BlackElo "2103"]
[TimeControl "180+1"]
[EndTime "9:49:21 PDT"]
[Termination "Game drawn by agreement"]

1. d4 {[%clk 0:02:58.6]} 1... Nf6 {[%clk 0:02:59]} 2. c4 {[%clk 0:02:58.2]} 2...
g6 {[%clk 0:02:59.1]} 3. Nc3 {[%clk 0:02:57.7]} 3... d5 {[%clk 0:02:59.2]} 4.
Nf3 {[%clk 0:02:57.7]} 4... Bg7 {[%clk 0:02:58.6]} 5. e3 {[%clk 0:02:58.3]} 5...
O-O {[%clk 0:02:57.2]} 6. Qb3 {[%clk 0:02:58.6]} 6... dxc4 {[%clk 0:02:55.8]} 7.
Bxc4 {[%clk 0:02:59.2]} 7... c5 {[%clk 0:02:54.4]} 8. d5 {[%clk 0:02:59]} 8...
Nbd7 {[%clk 0:02:48.8]} 9. O-O {[%clk 0:02:49.9]} 9... Nb6 {[%clk 0:02:48.1]}
10. e4 {[%clk 0:02:47.4]} 10... Nxc4 {[%clk 0:02:46]} 11. Qxc4 {[%clk
0:02:48.3]} 11... Nd7 {[%clk 0:02:39.7]} 12. Be3 {[%clk 0:02:43.6]} 12... b6
{[%clk 0:02:38.8]} 13. Bf4 {[%clk 0:02:28.7]} 13... Bb7 {[%clk 0:02:28.7]} 14.
e5 {[%clk 0:02:27.3]} 14... e6 {[%clk 0:02:03.6]} 15. dxe6 {[%clk 0:02:25.1]}
15... fxe6 {[%clk 0:02:03.5]} 16. Qxe6+ {[%clk 0:02:25.4]} 16... Kh8 {[%clk
0:02:04.1]} 17. Rfd1 {[%clk 0:02:13.8]} 17... Bxf3 {[%clk 0:01:52]} 18. Rxd7
{[%clk 0:02:10.2]} 18... Qe8 {[%clk 0:01:51.9]} 19. Re7 {[%clk 0:00:56.8]} 19...
Qc6 {[%clk 0:01:51.2]} 20. Bg5 {[%clk 0:00:34.7]} 20... Qxe6 {[%clk 0:01:49.3]}
21. Rxe6 {[%clk 0:00:35.6]} 21... Bg4 {[%clk 0:01:43.5]} 22. Re7 {[%clk
0:00:35.2]} 22... Rfe8 {[%clk 0:01:37.2]} 23. Rxe8+ {[%clk 0:00:14.9]} 23...
Rxe8 {[%clk 0:01:36.9]} 24. f4 {[%clk 0:00:15.4]} 24... h6 {[%clk 0:01:21.9]}
25. Bh4 {[%clk 0:00:15]} 25... g5 {[%clk 0:01:16.6]} 26. fxg5 {[%clk 0:00:15]}
26... Bxe5 {[%clk 0:01:15.6]} 27. gxh6 {[%clk 0:00:14.2]} 27... Bd4+ {[%clk
0:01:13.4]} 28. Bf2 {[%clk 0:00:13.9]} 28... Bxc3 {[%clk 0:01:08.1]} 29. bxc3
{[%clk 0:00:13.5]} 29... Re2 {[%clk 0:01:07.6]} 30. h3 {[%clk 0:00:11.8]} 30...
Bh5 {[%clk 0:01:03.7]} 31. g4 {[%clk 0:00:11.6]} 31... Bg6 {[%clk 0:01:03.6]}
32. h4 {[%clk 0:00:09.6]} 32... Be4 {[%clk 0:01:00.1]} 33. Re1 {[%clk
0:00:08.1]} 33... Rxe1+ {[%clk 0:00:58.4]} 34. Bxe1 {[%clk 0:00:08.3]} 34... Kh7
{[%clk 0:00:58.4]} 35. Kf2 {[%clk 0:00:03.5]} 35... Kxh6 {[%clk 0:00:57.9]} 36.
Ke3 {[%clk 0:00:03.9]} 36... Bd5 {[%clk 0:00:56.6]} 37. a3 {[%clk 0:00:03.7]}
37... a5 {[%clk 0:00:54.5]} 38. Kf4 {[%clk 0:00:03.2]} 38... Kg6 {[%clk
0:00:54.8]} 39. Ke5 {[%clk 0:00:02.8]} 39... Bf3 {[%clk 0:00:50.1]} 40. Bd2
{[%clk 0:00:03.3]} 40... Bxg4 {[%clk 0:00:49.1]} 41. Kd6 {[%clk 0:00:03.9]}
41... c4 {[%clk 0:00:39.1]} 42. Kc6 {[%clk 0:00:03.8]} 42... a4 {[%clk
0:00:37.2]} 43. Kxb6 {[%clk 0:00:03.4]} 43... Bd1 {[%clk 0:00:37.7]} 44. Kc5
{[%clk 0:00:02.7]} 44... Bb3 {[%clk 0:00:37.5]} 45. Kd4 {[%clk 0:00:03.4]} 45...
Kh5 {[%clk 0:00:37.4]} 46. Be1 {[%clk 0:00:03.5]} 46... Kg4 {[%clk 0:00:36.5]}
47. Ke5 {[%clk 0:00:03.6]} 47... Kh5 {[%clk 0:00:36.6]} 48. Kf6 {[%clk
0:00:03.8]} 48... Kg4 {[%clk 0:00:36.5]} 49. Kg6 {[%clk 0:00:03.7]} 49... Bc2+
{[%clk 0:00:34.6]} 50. Kh6 {[%clk 0:00:04.1]} 50... Kf5 {[%clk 0:00:33]} 51. h5
{[%clk 0:00:04.3]} 51... Bd1 {[%clk 0:00:30.3]} 52. Bh4 {[%clk 0:00:03.3]} 52...
Bf3 {[%clk 0:00:28.8]} 53. Be7 {[%clk 0:00:02.6]} 53... Bg4 {[%clk 0:00:28.3]}
54. Bd8 {[%clk 0:00:02.8]} 54... Bf3 {[%clk 0:00:28.3]} 55. Bh4 {[%clk
0:00:02.5]} 55... Bg4 {[%clk 0:00:28.7]} 56. Bf2 {[%clk 0:00:03.1]} 56... Bf3
{[%clk 0:00:28.9]} 57. Bc5 {[%clk 0:00:03.8]} 57... Bg4 {[%clk 0:00:28.8]} 58.
Bb4 {[%clk 0:00:04.7]} 58... Bf3 {[%clk 0:00:29]} 59. Ba5 {[%clk 0:00:05.6]}
59... Bg4 {[%clk 0:00:29.1]} 60. Bb6 {[%clk 0:00:06.5]} 60... Bf3 {[%clk
0:00:29.4]} 61. Kg7 {[%clk 0:00:07.2]} 61... Bxh5 {[%clk 0:00:29]} 62. Kf8
{[%clk 0:00:06.8]} 62... Bd1 {[%clk 0:00:28.8]} 63. Ke7 {[%clk 0:00:06.8]} 63...
Bb3 {[%clk 0:00:28]} 64. Kd6 {[%clk 0:00:06.9]} 64... Ke4 {[%clk 0:00:28.5]} 65.
Kc5 {[%clk 0:00:07.5]} 65... Kd3 {[%clk 0:00:28.8]} 66. Kb4 {[%clk 0:00:07.9]}
66... Kc2 {[%clk 0:00:28.5]} 67. Bc5 {[%clk 0:00:08.2]} 67... Kb2 {[%clk
0:00:28.2]} 68. Bd6 {[%clk 0:00:08.9]} 68... Ka2 {[%clk 0:00:24]} 1/2-1/2

[Event "Early-Titled-Tuesday-Blitz-October-17-2023"]
[Site "Chess.com"]
[Date "2023.10.17"]
[Round "9"]
[White "jcibarra"]
[Black "Doomfist26"]
[Result "1-0"]
[WhiteElo "2878"]
[BlackElo "2626"]
[TimeControl "180+1"]
[EndTime "9:49:22 PDT"]
[Termination "jcibarra won on time"]

1. e4 {[%clk 0:03:00.9]} 1... e6 {[%clk 0:02:57.8]} 2. d4 {[%clk 0:03:00.5]}
2... d5 {[%clk 0:02:56.8]} 3. Nc3 {[%clk 0:03:00]} 3... Nc6 {[%clk 0:02:57.4]}
4. e5 {[%clk 0:02:59]} 4... f6 {[%clk 0:02:57.8]} 5. Bb5 {[%clk 0:02:58.3]} 5...
a6 {[%clk 0:02:55.8]} 6. Bxc6+ {[%clk 0:02:57.9]} 6... bxc6 {[%clk 0:02:56.7]}
7. Nf3 {[%clk 0:02:56.3]} 7... c5 {[%clk 0:02:54.3]} 8. dxc5 {[%clk 0:02:52.4]}
8... Bxc5 {[%clk 0:02:54]} 9. O-O {[%clk 0:02:52.6]} 9... f5 {[%clk 0:02:47.7]}
10. Na4 {[%clk 0:02:43.4]} 10... Ba7 {[%clk 0:02:42.6]} 11. b4 {[%clk
0:02:41.2]} 11... Ne7 {[%clk 0:02:41.8]} 12. Nd4 {[%clk 0:02:37.1]} 12... O-O
{[%clk 0:02:39.4]} 13. Bg5 {[%clk 0:02:33.4]} 13... Qe8 {[%clk 0:02:34.6]} 14.
Bxe7 {[%clk 0:02:26.4]} 14... Qxe7 {[%clk 0:02:34.7]} 15. c3 {[%clk 0:02:22]}
15... Bd7 {[%clk 0:02:32]} 16. Rb1 {[%clk 0:02:08]} 16... f4 {[%clk 0:02:23.3]}
17. Nb2 {[%clk 0:01:52.8]} 17... Bxd4 {[%clk 0:02:12.2]} 18. Qxd4 {[%clk
0:01:49.1]} 18... f3 {[%clk 0:02:12.7]} 19. g3 {[%clk 0:01:48.9]} 19... Qg5
{[%clk 0:02:08]} 20. Rfe1 {[%clk 0:01:45.4]} 20... Bb5 {[%clk 0:02:02.4]} 21.
Nd1 {[%clk 0:01:22.8]} 21... Rf5 {[%clk 0:01:39.2]} 22. Ne3 {[%clk 0:01:16.4]}
22... Rf7 {[%clk 0:01:22.4]} 23. h4 {[%clk 0:01:05]} 23... Qg6 {[%clk
0:01:20.7]} 24. Qg4 {[%clk 0:00:55.8]} 24... Qh6 {[%clk 0:01:17.4]} 25. Qg5
{[%clk 0:00:50]} 25... Qxg5 {[%clk 0:01:11.4]} 26. hxg5 {[%clk 0:00:50.9]} 26...
Be2 {[%clk 0:01:09]} 27. g4 {[%clk 0:00:43.3]} 27... Rf4 {[%clk 0:01:05.4]} 28.
Kh2 {[%clk 0:00:42.4]} 28... Re4 {[%clk 0:01:04]} 29. Nc2 {[%clk 0:00:39.4]}
29... Rxg4 {[%clk 0:00:55.8]} 30. Rg1 {[%clk 0:00:37.4]} 30... Re4 {[%clk
0:00:49.6]} 31. Nd4 {[%clk 0:00:33.6]} 31... Rxe5 {[%clk 0:00:47.4]} 32. Rg4
{[%clk 0:00:29.2]} 32... Rf8 {[%clk 0:00:45.1]} 33. Re1 {[%clk 0:00:25.5]} 33...
a5 {[%clk 0:00:36.1]} 34. bxa5 {[%clk 0:00:24.6]} 34... c5 {[%clk 0:00:35.9]}
35. Nc6 {[%clk 0:00:23.3]} 35... Re4 {[%clk 0:00:33.2]} 36. Rxe4 {[%clk
0:00:22.1]} 36... dxe4 {[%clk 0:00:33.8]} 37. Kg3 {[%clk 0:00:19.6]} 37... e3
{[%clk 0:00:19]} 38. a6 {[%clk 0:00:15.2]} 38... exf2 {[%clk 0:00:17.8]} 39.
Kxf2 {[%clk 0:00:16.1]} 39... Bxa6 {[%clk 0:00:18.4]} 40. Rxe6 {[%clk
0:00:16.5]} 40... Bc4 {[%clk 0:00:17.9]} 41. Re5 {[%clk 0:00:15.7]} 41... Bxa2
{[%clk 0:00:17.9]} 42. Rxc5 {[%clk 0:00:16.3]} 42... h6 {[%clk 0:00:17.6]} 43.
g6 {[%clk 0:00:15.4]} 43... Bb1 {[%clk 0:00:13.5]} 44. Ne7+ {[%clk 0:00:13.6]}
44... Kh8 {[%clk 0:00:14]} 45. Rb5 {[%clk 0:00:11.4]} 45... Be4 {[%clk
0:00:13.6]} 46. Re5 {[%clk 0:00:11.5]} 46... Bd3 {[%clk 0:00:12.5]} 47. Re3
{[%clk 0:00:09.6]} 47... Be2 {[%clk 0:00:11.5]} 48. Re4 {[%clk 0:00:09.4]} 48...
Re8 {[%clk 0:00:11.5]} 49. Re5 {[%clk 0:00:06.9]} 49... Rd8 {[%clk 0:00:07.6]}
50. Rc5 {[%clk 0:00:04.6]} 50... Re8 {[%clk 0:00:07.6]} 51. c4 {[%clk
0:00:02.7]} 51... Bd3 {[%clk 0:00:06.4]} 52. Rc7 {[%clk 0:00:02.8]} 52... Rd8
{[%clk 0:00:02.6]} 53. c5 {[%clk 0:00:02.7]} 53... Bb5 {[%clk 0:00:02.2]} 54.
Kxf3 {[%clk 0:00:02.4]} 54... Re8 {[%clk 0:00:02.4]} 55. Kf4 {[%clk 0:00:02.6]}
55... Rf8+ {[%clk 0:00:02.1]} 56. Ke5 {[%clk 0:00:03]} 56... h5 {[%clk
0:00:02.8]} 57. Rb7 {[%clk 0:00:02.1]} 57... Be8 {[%clk 0:00:02.7]} 58. c6
{[%clk 0:00:02.3]} 58... h4 {[%clk 0:00:01.9]} 59. Rb4 {[%clk 0:00:02.9]} 1-0

[Event "Early-Titled-Tuesday-Blitz-October-17-2023"]
[Site "Chess.com"]
[Date "2023.10.17"]
[Round "9"]
[White "js20000"]
[Black "Yeremyan_ChessMate"]
[Result "0-1"]
[WhiteElo "2876"]
[BlackElo "2752"]
[TimeControl "180+1"]
[EndTime "9:49:25 PDT"]
[Termination "Yeremyan_ChessMate won by resignation"]

1. Nf3 {[%clk 0:03:00.9]} 1... Nf6 {[%clk 0:03:00]} 2. c4 {[%clk 0:03:00.5]}
2... g6 {[%clk 0:03:00.7]} 3. b3 {[%clk 0:03:00.1]} 3... Bg7 {[%clk 0:03:01.3]}
4. Bb2 {[%clk 0:03:00.5]} 4... O-O {[%clk 0:03:02.2]} 5. e3 {[%clk 0:03:00.2]}
5... d5 {[%clk 0:03:02.6]} 6. cxd5 {[%clk 0:02:59.2]} 6... Qxd5 {[%clk
0:03:03.4]} 7. Nc3 {[%clk 0:02:58.5]} 7... Qf5 {[%clk 0:03:03]} 8. d4 {[%clk
0:02:57.8]} 8... c5 {[%clk 0:03:02.7]} 9. Bd3 {[%clk 0:02:57.5]} 9... Qh5 {[%clk
0:03:03]} 10. O-O {[%clk 0:02:36.7]} 10... Nc6 {[%clk 0:03:01.3]} 11. dxc5
{[%clk 0:02:25.7]} 11... Rd8 {[%clk 0:02:58.7]} 12. Qe2 {[%clk 0:02:17.9]} 12...
Bg4 {[%clk 0:02:49.5]} 13. Na4 {[%clk 0:01:24.7]} 13... e5 {[%clk 0:02:09.6]}
14. e4 {[%clk 0:01:06.1]} 14... Bxf3 {[%clk 0:02:03.7]} 15. gxf3 {[%clk
0:01:04.3]} 15... Nd4 {[%clk 0:02:04.4]} 16. Bxd4 {[%clk 0:01:03.6]} 16... Rxd4
{[%clk 0:02:05.2]} 17. Rfd1 {[%clk 0:00:58.8]} 17... Rad8 {[%clk 0:01:58.7]} 18.
Bc4 {[%clk 0:00:44.9]} 18... Qg5+ {[%clk 0:01:45.1]} 19. Kh1 {[%clk 0:00:44.3]}
19... Nh5 {[%clk 0:01:45.9]} 20. Rxd4 {[%clk 0:00:41.6]} 20... exd4 {[%clk
0:01:44.2]} 21. Rg1 {[%clk 0:00:41.2]} 21... Qe7 {[%clk 0:01:35.7]} 22. Qd2
{[%clk 0:00:36.1]} 22... Be5 {[%clk 0:01:31.5]} 23. Qg5 {[%clk 0:00:33.2]} 23...
Qxg5 {[%clk 0:01:04.7]} 24. Rxg5 {[%clk 0:00:34.1]} 24... d3 {[%clk 0:01:00.6]}
25. Rxe5 {[%clk 0:00:27.3]} 25... d2 {[%clk 0:01:00.2]} 26. Nb2 {[%clk
0:00:27.6]} 26... d1=Q+ {[%clk 0:00:56]} 27. Nxd1 {[%clk 0:00:28.2]} 27... Rxd1+
{[%clk 0:00:56.6]} 28. Kg2 {[%clk 0:00:28.8]} 28... Kf8 {[%clk 0:00:51.7]} 29.
f4 {[%clk 0:00:22.6]} 29... f6 {[%clk 0:00:51.2]} 30. Be2 {[%clk 0:00:16.8]}
30... Rd2 {[%clk 0:00:45.5]} 31. Rxh5 {[%clk 0:00:14.1]} 31... gxh5 {[%clk
0:00:44.6]} 32. Bxh5 {[%clk 0:00:14.5]} 32... Rxa2 {[%clk 0:00:45.3]} 33. e5
{[%clk 0:00:12.2]} 33... fxe5 {[%clk 0:00:44.9]} 34. fxe5 {[%clk 0:00:13.1]}
34... Rb2 {[%clk 0:00:43.9]} 35. Bd1 {[%clk 0:00:13.6]} 35... Ke7 {[%clk
0:00:42.4]} 36. Kg3 {[%clk 0:00:12.5]} 36... Rd2 {[%clk 0:00:41]} 37. Bf3 {[%clk
0:00:11.6]} 37... Rd3 {[%clk 0:00:41.4]} 38. Kf4 {[%clk 0:00:12]} 38... Rxb3
{[%clk 0:00:42.1]} 39. Bd5 {[%clk 0:00:12.2]} 39... Rb5 {[%clk 0:00:41.7]} 40.
Ke4 {[%clk 0:00:12.6]} 40... a5 {[%clk 0:00:39.8]} 41. f4 {[%clk 0:00:13]} 41...
Rxc5 {[%clk 0:00:37.1]} 42. f5 {[%clk 0:00:12.7]} 42... Rc1 {[%clk 0:00:20]} 43.
f6+ {[%clk 0:00:12.6]} 43... Kd7 {[%clk 0:00:19.6]} 44. e6+ {[%clk 0:00:11.6]}
44... Kd6 {[%clk 0:00:18.1]} 45. e7 {[%clk 0:00:10.5]} 45... Re1+ {[%clk
0:00:17]} 46. Kd4 {[%clk 0:00:08]} 46... b5 {[%clk 0:00:12.2]} 47. Be4 {[%clk
0:00:04.1]} 47... Kd7 {[%clk 0:00:08.4]} 48. Bxh7 {[%clk 0:00:04.1]} 48... Rxe7
{[%clk 0:00:07.2]} 49. fxe7 {[%clk 0:00:03.6]} 49... Kxe7 {[%clk 0:00:07.9]} 50.
Bd3 {[%clk 0:00:03.5]} 50... Kf6 {[%clk 0:00:07.5]} 51. Bxb5 {[%clk 0:00:03.1]}
51... Kg7 {[%clk 0:00:08.4]} 52. Bf1 {[%clk 0:00:03.7]} 52... a4 {[%clk
0:00:09.1]} 53. Kc4 {[%clk 0:00:04.6]} 53... a3 {[%clk 0:00:10]} 54. Kb3 {[%clk
0:00:05.5]} 54... a2 {[%clk 0:00:10.9]} 55. Ka4 {[%clk 0:00:06.4]} 55... a1=Q+
{[%clk 0:00:10.8]} 56. Kb3 {[%clk 0:00:06.5]} 56... Qxf1 {[%clk 0:00:11.5]} 57.
h4 {[%clk 0:00:04.7]} 57... Qf4 {[%clk 0:00:11.4]} 58. h5 {[%clk 0:00:04.9]}
58... Qg5 {[%clk 0:00:11.9]} 59. h6+ {[%clk 0:00:05.3]} 59... Qxh6 {[%clk
0:00:12.5]} 60. Kc4 {[%clk 0:00:06.2]} 60... Qd6 {[%clk 0:00:13]} 61. Kc3 {[%clk
0:00:06.3]} 61... Qd5 {[%clk 0:00:13.4]} 62. Kc2 {[%clk 0:00:06.8]} 62... Qd4
{[%clk 0:00:13.8]} 63. Kb3 {[%clk 0:00:06.7]} 63... Qc5 {[%clk 0:00:14]} 64. Kb2
{[%clk 0:00:07.6]} 64... Qc4 {[%clk 0:00:14.2]} 65. Ka1 {[%clk 0:00:07.4]} 65...
Qe2 {[%clk 0:00:14.2]} 66. Kb1 {[%clk 0:00:07.1]} 66... Kf6 {[%clk 0:00:15.1]}
0-1

[Event "Early-Titled-Tuesday-Blitz-October-17-2023"]
[Site "Chess.com"]
[Date "2023.10.17"]
[Round "9"]
[White "vladgoncharov"]
[Black "GothamChess"]
[Result "1-0"]
[WhiteElo "2569"]
[BlackElo "2672"]
[TimeControl "180+1"]
[EndTime "9:49:27 PDT"]
[Termination "vladgoncharov won on time"]

1. d4 {[%clk 0:03:00.9]} 1... f5 {[%clk 0:02:59]} 2. Nf3 {[%clk 0:02:55]} 2...
Nf6 {[%clk 0:02:59]} 3. c4 {[%clk 0:02:54.1]} 3... e6 {[%clk 0:02:59.1]} 4. Nc3
{[%clk 0:02:53.7]} 4... Bb4 {[%clk 0:02:59.7]} 5. Bd2 {[%clk 0:02:52.4]} 5...
O-O {[%clk 0:02:58]} 6. Qc2 {[%clk 0:02:49.7]} 6... Bxc3 {[%clk 0:02:51.3]} 7.
Bxc3 {[%clk 0:02:49.3]} 7... b6 {[%clk 0:02:51.4]} 8. g3 {[%clk 0:02:27.9]} 8...
Bb7 {[%clk 0:02:46.8]} 9. Bg2 {[%clk 0:02:27.6]} 9... Be4 {[%clk 0:02:46]} 10.
Qc1 {[%clk 0:02:26.6]} 10... d6 {[%clk 0:02:45]} 11. O-O {[%clk 0:02:26]} 11...
Qe7 {[%clk 0:02:45.1]} 12. b4 {[%clk 0:02:25.2]} 12... Nbd7 {[%clk 0:02:44.3]}
13. Rd1 {[%clk 0:02:18.2]} 13... a6 {[%clk 0:02:34.7]} 14. c5 {[%clk 0:02:00.7]}
14... Nd5 {[%clk 0:02:30.5]} 15. Be1 {[%clk 0:01:37]} 15... a5 {[%clk
0:02:27.8]} 16. cxb6 {[%clk 0:01:33.4]} 16... cxb6 {[%clk 0:02:23.1]} 17. bxa5
{[%clk 0:01:33.4]} 17... bxa5 {[%clk 0:02:22.5]} 18. Qa3 {[%clk 0:01:33.5]}
18... N7b6 {[%clk 0:02:19.1]} 19. Rdc1 {[%clk 0:01:28.8]} 19... Rfc8 {[%clk
0:02:09.3]} 20. Rxc8+ {[%clk 0:01:27.9]} 20... Nxc8 {[%clk 0:02:09]} 21. Rc1
{[%clk 0:01:22.6]} 21... Ncb6 {[%clk 0:02:08.4]} 22. Qb3 {[%clk 0:01:17.3]}
22... a4 {[%clk 0:02:06.7]} 23. Qb5 {[%clk 0:01:14.2]} 23... h6 {[%clk
0:02:06.2]} 24. a3 {[%clk 0:01:11]} 24... Qd7 {[%clk 0:02:02.2]} 25. Qxd7 {[%clk
0:01:05.3]} 25... Nxd7 {[%clk 0:02:00.8]} 26. Nd2 {[%clk 0:01:04.2]} 26... Bxg2
{[%clk 0:01:59.7]} 27. Kxg2 {[%clk 0:01:04]} 27... Rb8 {[%clk 0:01:54]} 28. Rc6
{[%clk 0:00:59.8]} 28... Rb6 {[%clk 0:01:52.5]} 29. Rc8+ {[%clk 0:00:59.3]}
29... Kf7 {[%clk 0:01:51.9]} 30. Nc4 {[%clk 0:01:00]} 30... Ra6 {[%clk
0:01:47.2]} 31. Ba5 {[%clk 0:00:57.6]} 31... Ke7 {[%clk 0:00:42.3]} 32. Bd8+
{[%clk 0:00:56]} 32... Kf7 {[%clk 0:00:41.7]} 33. e3 {[%clk 0:00:54.9]} 33...
Ne7 {[%clk 0:00:37.4]} 34. Bxe7 {[%clk 0:00:50.2]} 34... Kxe7 {[%clk 0:00:37.6]}
35. Kf3 {[%clk 0:00:49.8]} 35... Ra7 {[%clk 0:00:32]} 36. Rc6 {[%clk 0:00:47]}
36... d5 {[%clk 0:00:31.6]} 37. Nb2 {[%clk 0:00:44.4]} 37... g5 {[%clk
0:00:23.8]} 38. Ke2 {[%clk 0:00:40.8]} 38... Nf6 {[%clk 0:00:22.6]} 39. f3
{[%clk 0:00:35.2]} 39... g4 {[%clk 0:00:21.8]} 40. Nd3 {[%clk 0:00:34.4]} 40...
gxf3+ {[%clk 0:00:20.6]} 41. Kxf3 {[%clk 0:00:34.7]} 41... Nd7 {[%clk
0:00:20.7]} 42. Nf4 {[%clk 0:00:33.9]} 42... Nf8 {[%clk 0:00:20.3]} 43. h4
{[%clk 0:00:32.6]} 43... Rb7 {[%clk 0:00:20.5]} 44. Ra6 {[%clk 0:00:31.8]} 44...
Rb3 {[%clk 0:00:20.3]} 45. Rxa4 {[%clk 0:00:31.6]} 45... Nd7 {[%clk 0:00:20.4]}
46. Ra7 {[%clk 0:00:31.3]} 46... Rb6 {[%clk 0:00:07.4]} 47. a4 {[%clk
0:00:30.2]} 47... Kd6 {[%clk 0:00:07.3]} 48. a5 {[%clk 0:00:30.4]} 48... Rc6
{[%clk 0:00:07.7]} 49. h5 {[%clk 0:00:29]} 49... e5 {[%clk 0:00:04.2]} 50. Ng6
{[%clk 0:00:28]} 50... Rc3 {[%clk 0:00:02.6]} 51. dxe5+ {[%clk 0:00:27.4]} 51...
Nxe5+ {[%clk 0:00:02.9]} 52. Nxe5 {[%clk 0:00:27.7]} 52... Kxe5 {[%clk
0:00:03.8]} 53. Ke2 {[%clk 0:00:23.5]} 53... Ra3 {[%clk 0:00:03.9]} 54. a6
{[%clk 0:00:22.6]} 54... d4 {[%clk 0:00:03.7]} 55. exd4+ {[%clk 0:00:21.4]}
55... Kxd4 {[%clk 0:00:04.6]} 56. Rg7 {[%clk 0:00:19.5]} 56... Rxa6 {[%clk
0:00:04.2]} 57. Rg6 {[%clk 0:00:19.9]} 57... Ra3 {[%clk 0:00:04.6]} 58. Kf2
{[%clk 0:00:19.9]} 58... Ke4 {[%clk 0:00:04.9]} 59. Rxh6 {[%clk 0:00:19.8]}
59... Ra2+ {[%clk 0:00:05.1]} 60. Kg1 {[%clk 0:00:18.8]} 60... Kf3 {[%clk
0:00:05.8]} 61. Rg6 {[%clk 0:00:19.2]} 61... Ra1+ {[%clk 0:00:05.5]} 62. Kh2
{[%clk 0:00:19.4]} 62... Ra2+ {[%clk 0:00:06.4]} 63. Kh3 {[%clk 0:00:19.8]}
63... Ra1 {[%clk 0:00:07.1]} 64. Kh4 {[%clk 0:00:20.1]} 64... Rh1+ {[%clk
0:00:07.5]} 65. Kg5 {[%clk 0:00:20.1]} 65... Kxg3 {[%clk 0:00:08.2]} 66. Kxf5+
{[%clk 0:00:20.5]} 66... Kf3 {[%clk 0:00:02.6]} 67. h6 {[%clk 0:00:20.3]} 67...
Rh5+ {[%clk 0:00:02.4]} 68. Kf6 {[%clk 0:00:20.5]} 68... Kf4 {[%clk 0:00:03]}
69. Kg7 {[%clk 0:00:20.3]} 69... Kf5 {[%clk 0:00:03.4]} 70. h7 {[%clk
0:00:19.5]} 70... Rh4 {[%clk 0:00:04]} 71. Rg1 {[%clk 0:00:19.1]} 1-0